bitfinex-derivatives/quotes_SOLF0:USTF0_20260220
["timestamp","ask_amount","ask_price","bid_price","bid_amount"]
[1771593206171,25.58850969,83.158,83.112,27.05746776]
[1771593207071,25.58850969,83.158,83.115,10.8332]
[1771593207571,9.2739632,83.2,83.072,183.25416483]
[1771593207572,25.58850969,83.172,83.121,27.05746776]
[1771593208669,25.58850969,83.172,83.131,10.831]
[1771593211568,25.58850969,83.172,83.132,27.05746776]
[1771593213273,25.58850969,83.172,83.14,10.8299]
[1771593218575,3.69839803,83.17,83.14,10.8299]
[1771593218971,29.05991924,83.17,83.14,10.8299]
[1771593220477,25.36152121,83.17,83.14,10.8299]
[1771593222980,29.05991924,83.17,83.14,10.8299]
[1771593223281,25.36152121,83.17,83.14,10.8299]
[1771593226584,25.36152121,83.159,83.111,26.0026953]
[1771593227083,25.36152121,83.159,83.118,10.8327]
[1771593227287,25.36152121,83.159,83.119,26.0026953]
[1771593227680,25.36152121,83.159,83.121,26.0026953]
[1771593228889,25.36152121,83.159,83.123,26.0026953]
[1771593229688,25.36152121,83.159,83.126,10.8316]
[1771593229892,25.36152121,83.159,83.127,26.0026953]
[1771593230483,25.36152121,83.169,83.127,26.0026953]
[1771593230682,28.3678774,83.168,83.129,26.0026953]
[1771593230892,3.00635619,83.167,83.129,26.0026953]
[1771593231084,25.36152121,83.168,83.131,26.0026953]
[1771593231291,25.36152121,83.168,83.09,98.09]
[1771593231292,25.36152121,83.168,83.127,36.8342953]
[1771593231486,25.36152121,83.168,83.128,26.0026953]
[1771593232188,25.36152121,83.168,83.131,10.831]
[1771593232389,3.00610635,83.167,83.131,10.831]
[1771593232689,3.00610635,83.166,83.131,36.8336953]
[1771593232900,25.36152121,83.167,83.131,36.8336953]
[1771593233082,3.00610621,83.166,83.131,36.8336953]
[1771593233392,25.36152121,83.167,83.131,36.8336953]
[1771593233594,3.00610621,83.166,83.131,36.8336953]
[1771593233891,25.36152121,83.167,83.131,36.8336953]
[1771593234191,3.00610621,83.166,83.131,36.8336953]
[1771593234392,25.36152121,83.167,83.131,36.8336953]
[1771593234587,28.36762714,83.166,83.131,36.8336953]
[1771593234791,25.36152121,83.166,83.131,36.8336953]
[1771593234987,11.00855294,83.189,83.116,26.0026953]
[1771593234988,25.36152121,83.159,83.116,26.0026953]
[1771593235195,25.36152121,83.157,83.111,26.0026953]
[1771593235698,25.36152121,83.157,83.121,26.0026953]
[1771593236393,25.36152121,83.157,83.128,10.8315]
[1771593236788,25.36152121,83.157,83.121,26.0026953]
[1771593236986,25.36152121,83.157,83.121,36.8350953]
[1771593238491,25.36152121,83.157,83.133,10.8308]
[1771593239292,25.36152121,83.157,83.126,10.8317]
[1771593241100,3.7038269,83.17,83.127,26.0026953]
[1771593241306,12.32842929,83.169,83.127,26.0026953]
[1771593241600,12.32842869,83.168,83.127,26.0026953]
[1771593241790,12.32842869,83.167,83.127,26.0026953]
[1771593241990,12.32842869,83.166,83.127,26.0026953]
[1771593242296,12.32842869,83.165,83.131,10.831]
[1771593242598,12.32842869,83.164,83.131,10.831]
[1771593242801,12.32842869,83.163,83.131,10.831]
[1771593242998,3.0064002,83.162,83.131,10.831]
[1771593243297,3.0064002,83.161,83.131,10.831]
[1771593243498,3.0064002,83.16,83.131,10.831]
[1771593243699,3.0064002,83.159,83.131,10.831]
[1771593244002,25.36152121,83.17,83.131,26.0026953]
[1771593244206,12.32858435,83.169,83.131,26.0026953]
[1771593244500,12.32858435,83.168,83.131,26.0026953]
[1771593244696,3.7038269,83.18,83.137,26.0026953]
[1771593244898,12.32811396,83.179,83.137,26.0026953]
[1771593245105,12.32811396,83.178,83.137,26.0026953]
[1771593245301,12.32811396,83.177,83.137,26.0026953]
[1771593245601,26.95237156,83.169,83.121,27.08146254]
[1771593245802,26.95237156,83.167,83.121,27.08146254]
[1771593246005,12.32811396,83.166,83.121,27.08146254]
[1771593246198,3.0061029,83.165,83.121,27.08146254]
[1771593246398,3.0061029,83.164,83.121,27.08146254]
[1771593246605,3.0061029,83.163,83.121,27.08146254]
[1771593246805,26.95237156,83.167,83.137,10.8302]
[1771593246994,12.32877005,83.166,83.137,10.8302]
[1771593247194,3.00635336,83.165,83.137,10.8302]
[1771593247397,3.00635336,83.164,83.137,10.8302]
[1771593247601,3.00635336,83.163,83.137,10.8302]
[1771593247903,26.95237156,83.167,83.137,10.8302]
[1771593248201,3.00635336,83.166,83.137,10.8302]
[1771593248397,3.00635336,83.165,83.137,10.8302]
[1771593248604,3.00635336,83.164,83.137,10.8302]
[1771593248802,3.00635336,83.163,83.137,10.8302]
[1771593248997,26.95237156,83.167,83.137,10.8302]
[1771593249194,12.32786973,83.166,83.137,10.8302]
[1771593249399,3.00635365,83.165,83.137,10.8302]
[1771593249702,3.00635365,83.164,83.137,10.8302]
[1771593250004,26.95237156,83.167,83.137,10.8302]
[1771593250199,26.20237037,83.165,83.137,10.8302]
[1771593250400,29.20847543,83.164,83.137,10.8302]
[1771593250697,3.00610506,83.163,83.137,10.8302]
[1771593250900,26.20237037,83.164,83.137,10.8302]
[1771593251097,3.00635336,83.163,83.137,10.8302]
[1771593251296,26.20237037,83.164,83.137,10.8302]
[1771593251503,3.00635336,83.163,83.137,10.8302]
[1771593251702,26.20237037,83.164,83.137,10.8302]
[1771593251902,3.00635336,83.163,83.137,10.8302]
[1771593252107,26.20237037,83.164,83.137,10.8302]
[1771593252303,3.00635336,83.163,83.137,10.8302]
[1771593252604,3.00635336,83.162,83.137,10.8302]
[1771593252804,26.20237037,83.164,83.137,10.8302]
[1771593253007,3.00635336,83.163,83.137,10.8302]
[1771593253201,3.00635336,83.162,83.137,10.8302]
[1771593253401,26.20237037,83.164,83.137,10.8302]
[1771593253700,3.00635336,83.163,83.137,10.8302]
[1771593253898,3.00635336,83.162,83.137,10.8302]
[1771593254201,26.20237037,83.164,83.137,10.8302]
[1771593254402,3.00635336,83.163,83.137,10.8302]
[1771593254603,3.00635336,83.162,83.141,26.43288528]
[1771593254803,29.90619727,83.18,83.141,26.43288528]
[1771593255109,29.90619727,83.17,83.121,26.43288528]
[1771593256707,29.90619727,83.17,83.135,10.8306]
[1771593257601,26.20237037,83.17,83.132,26.43288528]
[1771593257803,26.20237037,83.183,83.132,26.43288528]
[1771593258006,9.32211419,83.182,83.132,26.43288528]
[1771593258209,9.32211419,83.181,83.132,26.43288528]
[1771593258407,26.20237037,83.183,83.132,26.43288528]
[1771593258604,9.32137705,83.182,83.132,26.43288528]
[1771593258809,9.32137705,83.181,83.147,26.43288528]
[1771593259110,26.20237037,83.183,83.147,26.43288528]
[1771593259301,9.32163003,83.182,83.147,26.43288528]
[1771593259506,26.20237037,83.183,83.147,26.43288528]
[1771593259702,9.32064201,83.182,83.153,10.8282]
[1771593259907,26.20237037,83.2,83.154,26.43288528]
[1771593260110,9.3226199,83.199,83.154,26.43288528]
[1771593260311,26.20237037,83.209,83.154,26.43288528]
[1771593260512,9.31821794,83.208,83.154,26.43288528]
[1771593260709,9.31821794,83.207,83.154,26.43288528]
[1771593260912,9.31821794,83.206,83.154,26.43288528]
[1771593261113,35.52058831,83.205,83.154,26.43288528]
[1771593261317,35.52058831,83.204,83.154,26.43288528]
[1771593261511,3.7038269,83.21,83.161,26.43288528]
[1771593261512,35.52058831,83.203,83.161,26.43288528]
[1771593261715,26.20237037,83.201,83.17,10.826]
[1771593263115,3.7038269,83.2,83.17,10.826]
[1771593267124,3.7038269,83.2,83.17,37.25888528]
[1771593268216,11.00855294,83.227,83.174,26.43288528]
[1771593268217,26.20237037,83.209,83.174,26.43288528]
[1771593268420,3.7038269,83.2,83.15,3.7038269]
[1771593268620,29.90619727,83.2,83.151,26.43288528]
[1771593269021,29.90619727,83.2,83.166,10.8266]
[1771593270224,26.20237037,83.199,83.161,26.43288528]
[1771593270425,3.7038269,83.19,83.161,26.43288528]
[1771593270625,26.20237037,83.189,83.155,10.8279]
[1771593276823,26.20237037,83.189,83.155,37.26078528]
[1771593278332,26.20237037,83.189,83.158,10.8275]
[1771593281034,26.20237037,83.189,83.16,10.8273]
[1771593287842,26.20237037,83.189,83.16,35.50013478]
[1771593288240,26.20237037,83.189,83.162,10.8271]
[1771593288645,26.20237037,83.189,83.162,35.49993478]
[1771593295949,25.58634574,83.199,83.17,10.8259]
[1771593296343,25.58634574,83.199,83.17,35.49873478]
[1771593297349,25.58634574,83.199,83.171,24.67283478]
[1771593297544,25.58634574,83.209,83.171,24.67283478]
[1771593297740,3.7038269,83.21,83.171,24.67283478]
[1771593297741,28.5913055,83.208,83.171,24.67283478]
[1771593297949,3.00495976,83.207,83.171,24.67283478]
[1771593298150,25.58634574,83.208,83.171,24.67283478]
[1771593298354,29.29017264,83.2,83.171,24.67283478]
[1771593299749,25.58634574,83.2,83.171,24.67283478]
[1771593301547,25.58634574,83.2,83.133,21.6616]
[1771593301548,10.8225,83.198,83.159,35.50013478]
[1771593301753,25.58634574,83.179,83.14,24.67283478]
[1771593301950,25.58634574,83.169,83.127,24.67283478]
[1771593302153,14.70281322,83.218,83.127,24.67283478]
[1771593302154,25.58634574,83.159,83.127,24.67283478]
[1771593302759,25.58634574,83.159,83.127,35.50443478]
[1771593303054,3.70016471,83.15,83.113,24.67283478]
[1771593303253,25.58634574,83.159,83.113,24.67283478]
[1771593303455,25.58634574,83.159,83.118,24.67283478]
[1771593304151,25.58634574,83.159,83.128,10.8315]
[1771593305459,3.70016471,83.18,83.129,26.46954126]
[1771593305644,3.0060468,83.179,83.129,26.46954126]
[1771593305846,3.70016471,83.18,83.129,26.46954126]
[1771593306046,3.0060468,83.179,83.129,26.46954126]
[1771593306249,3.70016471,83.18,83.129,26.46954126]
[1771593306654,3.70016471,83.18,83.139,10.8301]
[1771593307357,24.92564281,83.179,83.139,10.8301]
[1771593308758,3.70016471,83.17,83.139,10.8301]
[1771593310557,28.62580752,83.17,83.139,10.8301]
[1771593314858,24.92564281,83.17,83.139,10.8301]
[1771593323066,3.70016471,83.18,83.147,10.829]
[1771593323662,10.824,83.187,83.14,26.58744904]
[1771593323857,12.22523384,83.186,83.14,30.28761375]
[1771593324061,3.70016471,83.19,83.14,30.28761375]
[1771593324062,3.70016471,83.2,83.14,30.28761375]
[1771593324262,12.22378265,83.199,83.151,26.58744904]
[1771593324466,3.70016471,83.19,83.151,26.58744904]
[1771593325062,24.92564281,83.189,83.151,26.58744904]
[1771593325670,24.92564281,83.189,83.153,10.8282]
[1771593325870,24.92564281,83.189,83.154,26.58744904]
[1771593327370,24.92564281,83.189,83.154,37.41544904]
[1771593327562,24.92564281,83.189,83.14,3.70016471]
[1771593327563,24.92564281,83.189,83.155,26.58744904]
[1771593328674,24.92564281,83.189,83.158,10.8275]
[1771593328864,10.8226,83.197,83.159,26.58744904]
[1771593329265,10.8229,83.194,83.159,26.58744904]
[1771593329465,3.70016471,83.19,83.159,26.58744904]
[1771593330875,28.62580752,83.19,83.159,26.58744904]
[1771593334180,3.70016471,83.19,83.159,26.58744904]
[1771593334377,28.62580752,83.2,83.159,26.58744904]
[1771593334580,24.92564281,83.198,83.159,26.58744904]
[1771593334780,3.0055709,83.197,83.159,26.58744904]
[1771593334980,3.0055709,83.196,83.159,26.58744904]
[1771593335280,3.0055709,83.195,83.159,26.58744904]
[1771593335480,24.92564281,83.198,83.159,26.58744904]
[1771593335678,3.0055709,83.197,83.161,26.58744904]
[1771593335883,27.93121371,83.196,83.161,26.58744904]
[1771593336085,3.0055709,83.195,83.161,26.58744904]
[1771593336273,24.92564281,83.196,83.161,26.58744904]
[1771593336474,3.00557061,83.195,83.161,26.58744904]
[1771593336678,24.92564281,83.196,83.161,26.58744904]
[1771593336878,3.00557112,83.195,83.161,26.58744904]
[1771593337081,24.92564281,83.196,83.161,26.58744904]
[1771593337289,3.00557112,83.195,83.161,26.58744904]
[1771593337487,24.92564281,83.196,83.161,26.58744904]
[1771593337682,3.00557112,83.195,83.161,26.58744904]
[1771593337877,24.92564281,83.196,83.161,26.58744904]
[1771593338090,3.00557098,83.195,83.161,26.58744904]
[1771593338387,3.70016471,83.2,83.165,26.78818189]
[1771593338587,12.22088073,83.199,83.165,26.78818189]
[1771593338781,3.70016471,83.2,83.165,26.78818189]
[1771593338782,3.00550815,83.198,83.165,26.78818189]
[1771593338982,3.00550815,83.198,83.15,3.70016471]
[1771593338983,3.00550815,83.197,83.167,26.78818189]
[1771593339182,3.00550815,83.196,83.167,26.78818189]
[1771593339387,3.00550815,83.195,83.167,26.78818189]
[1771593339589,28.72945205,83.2,83.167,26.78818189]
[1771593339884,12.22150957,83.199,83.167,26.78818189]
[1771593340191,28.03485532,83.198,83.167,26.78818189]
[1771593340489,3.00556798,83.197,83.167,26.78818189]
[1771593340686,28.03485532,83.196,83.167,26.78818189]
[1771593340893,3.00556798,83.195,83.167,26.78818189]
[1771593341091,3.00556798,83.194,83.167,26.78818189]
[1771593341292,25.02928734,83.196,83.167,26.78818189]
[1771593341493,3.00556769,83.195,83.167,26.78818189]
[1771593341692,25.02928734,83.196,83.167,26.78818189]
[1771593341991,3.00553737,83.195,83.167,26.78818189]
[1771593342192,3.00553737,83.194,83.167,26.78818189]
[1771593342390,25.02928734,83.196,83.167,26.78818189]
[1771593342591,3.00556769,83.195,83.167,26.78818189]
[1771593342888,3.00556769,83.194,83.167,26.78818189]
[1771593343088,25.02928734,83.196,83.167,26.78818189]
[1771593343291,3.00553737,83.195,83.167,26.78818189]
[1771593343590,3.00553737,83.194,83.167,26.78818189]
[1771593343790,25.02928734,83.196,83.167,26.78818189]
[1771593343791,3.00553737,83.193,83.167,26.78818189]
[1771593343990,25.02928734,83.196,83.167,26.78818189]
[1771593344188,3.00556744,83.195,83.167,26.78818189]
[1771593344388,3.00556744,83.194,83.167,26.78818189]
[1771593344588,3.00556744,83.193,83.167,26.78818189]
[1771593344783,3.70016471,83.2,83.169,26.78818189]
[1771593344988,37.25490338,83.199,83.169,26.78818189]
[1771593345187,12.22561604,83.198,83.169,26.78818189]
[1771593345388,12.22561604,83.197,83.169,26.78818189]
[1771593345587,25.02928734,83.199,83.169,26.78818189]
[1771593345791,3.0052889,83.198,83.169,26.78818189]
[1771593345991,25.02928734,83.199,83.169,26.78818189]
[1771593346194,3.0052889,83.198,83.169,26.78818189]
[1771593346393,3.70016471,83.2,83.169,26.78818189]
[1771593346589,3.0052573,83.199,83.169,26.78818189]
[1771593346891,3.70016471,83.2,83.169,26.78818189]
[1771593347289,10.8217,83.204,83.169,26.78818189]
[1771593347489,3.00500713,83.203,83.169,26.78818189]
[1771593347691,25.02928734,83.209,83.169,26.78818189]
[1771593347893,37.2586959,83.208,83.169,26.78818189]
[1771593348094,12.22940856,83.207,83.169,26.78818189]
[1771593348292,10.8223,83.199,83.169,26.78818189]
[1771593348691,3.70016471,83.2,83.169,26.78818189]
[1771593349290,28.72945205,83.2,83.169,26.78818189]
[1771593349488,3.00528685,83.199,83.169,26.78818189]
[1771593349693,28.72945205,83.2,83.169,26.78818189]
[1771593349694,3.00528685,83.198,83.169,26.78818189]
[1771593349999,3.00528685,83.197,83.169,26.78818189]
[1771593350193,28.72945205,83.2,83.169,26.78818189]
[1771593350393,3.0052866,83.199,83.169,26.78818189]
[1771593350697,3.0052866,83.198,83.169,26.78818189]
[1771593350898,3.0052866,83.197,83.169,26.78818189]
[1771593351093,28.72945205,83.2,83.169,26.78818189]
[1771593351293,3.0052866,83.199,83.169,26.78818189]
[1771593351492,3.0052866,83.198,83.169,26.78818189]
[1771593351698,3.0052866,83.197,83.169,26.78818189]
[1771593351897,28.72945205,83.2,83.169,26.78818189]
[1771593352098,3.0052866,83.199,83.169,26.78818189]
[1771593352298,3.0052866,83.198,83.169,26.78818189]
[1771593352498,28.72945205,83.2,83.169,26.78818189]
[1771593352499,3.0052866,83.197,83.169,26.78818189]
[1771593352799,28.72945205,83.2,83.169,26.78818189]
[1771593353099,3.00528657,83.199,83.169,26.78818189]
[1771593353299,3.00528657,83.198,83.169,26.78818189]
[1771593353500,3.00528657,83.197,83.169,26.78818189]
[1771593353701,28.72945205,83.2,83.169,26.78818189]
[1771593353901,3.00528657,83.199,83.169,26.78818189]
[1771593354204,3.00528657,83.198,83.169,26.78818189]
[1771593354395,3.00528657,83.197,83.169,26.78818189]
[1771593354596,28.72945205,83.2,83.169,26.78818189]
[1771593354796,3.00528657,83.199,83.169,26.78818189]
[1771593354997,3.00528657,83.198,83.169,26.78818189]
[1771593355200,3.00528657,83.197,83.169,26.78818189]
[1771593355401,28.72945205,83.2,83.169,26.78818189]
[1771593355602,3.00528657,83.199,83.169,26.78818189]
[1771593355801,25.02928734,83.179,83.13,3.70016471]
[1771593356000,25.02928734,83.179,83.103,26.78818189]
[1771593356001,3.70016471,83.16,83.131,26.78818189]
[1771593358208,10.8267,83.166,83.131,26.78818189]
[1771593358400,3.70016471,83.17,83.131,26.78818189]
[1771593358799,28.72945205,83.17,83.131,26.78818189]
[1771593359807,39.55555205,83.17,83.131,26.78818189]
[1771593360106,39.5592173,83.17,83.131,26.78818189]
[1771593360306,35.85538734,83.17,83.131,26.78818189]
[1771593360507,39.5592173,83.17,83.131,26.78818189]
[1771593360703,3.70382996,83.16,83.131,26.78818189]
[1771593361402,25.02928734,83.158,83.114,26.78818189]
[1771593361614,3.70382996,83.14,83.091,26.78818189]
[1771593362006,28.7331173,83.14,83.098,26.78818189]
[1771593362503,3.70382996,83.13,83.098,26.78818189]
[1771593362703,3.70382996,83.11,83.033,36.09]
[1771593362910,3.70382996,83.1,83.051,26.78818189]
[1771593363712,14.53902996,83.1,83.051,26.78818189]
[1771593367612,25.26519429,83.108,83.051,26.78818189]
[1771593368412,3.70382996,83.1,83.051,26.78818189]
[1771593369419,25.26519429,83.108,83.061,26.1309954]
[1771593369615,25.26519429,83.119,83.071,26.1309954]
[1771593373311,25.26519429,83.119,83.073,26.1309954]
[1771593375016,14.53512996,83.13,83.081,26.1309954]
[1771593375418,39.80032425,83.13,83.081,26.1309954]
[1771593375715,25.26519429,83.129,83.081,26.1309954]
[1771593377815,10.8324,83.122,83.081,26.1309954]
[1771593378011,25.26519429,83.161,83.081,26.1309954]
[1771593378218,3.70382996,83.13,83.081,26.1309954]
[1771593379825,3.70382996,83.13,83.083,26.1309954]
[1771593381315,3.70382996,83.14,83.091,26.1309954]
[1771593381516,28.96902425,83.14,83.091,26.1309954]
[1771593382213,10.831,83.132,83.091,26.1309954]
[1771593384031,10.831,83.132,83.041,36.09]
[1771593384032,36.09339429,83.154,83.111,26.1309954]
[1771593384225,3.70382996,83.14,83.09,3.70382996]
[1771593384420,10.8302,83.139,83.092,10.8362]
[1771593384627,3.70382996,83.13,83.093,26.1309954]
[1771593384823,25.26519429,83.138,83.093,26.1309954]
[1771593386424,3.70382996,83.14,83.093,26.1309954]
[1771593386425,25.26519429,83.135,83.093,26.1309954]
[1771593386726,25.26519429,83.129,83.093,26.1309954]
[1771593387430,25.26519429,83.144,83.093,26.1309954]
[1771593387627,25.26519429,83.144,83.104,36.9655954]
[1771593387826,3.00832331,83.183,83.104,36.9655954]
[1771593387827,28.96902425,83.14,83.104,26.1309954]
[1771593388022,28.96902425,83.14,83.081,26.1309954]
[1771593388227,25.26519429,83.14,83.081,26.1309954]
[1771593388426,28.96902425,83.14,83.081,26.1309954]
[1771593388828,25.26519429,83.137,83.09,26.1309954]
[1771593390429,36.09589429,83.135,83.094,26.1309954]
[1771593390830,25.26519429,83.134,83.094,26.1309954]
[1771593392829,10.8315,83.128,83.094,26.1309954]
[1771593393030,36.09669429,83.128,83.094,26.1309954]
[1771593393228,25.26519429,83.127,83.081,26.1309954]
[1771593393928,10.8326,83.12,83.081,26.1309954]
[1771593394135,25.26519429,83.119,83.081,26.1309954]
[1771593394931,10.8334,83.114,83.081,26.1309954]
[1771593397035,25.26519429,83.119,83.081,26.1309954]
[1771593397232,3.70382996,83.13,83.081,26.1309954]
[1771593397436,25.37259561,83.132,83.081,26.1309954]
[1771593398833,25.37259561,83.131,83.085,26.2389416]
[1771593399230,10.8316,83.128,83.086,10.837]
[1771593399433,10.8316,83.128,83.087,26.2389416]
[1771593401432,25.37259561,83.129,83.087,26.2389416]
[1771593401629,25.37259561,83.119,83.087,26.2389416]
[1771593401832,25.37259561,83.119,83.071,26.2389416]
[1771593402440,25.37259561,83.117,83.071,26.2389416]
[1771593402836,10.8331,83.116,83.075,10.8384]
[1771593403243,3.00849063,83.115,83.076,26.2389416]
[1771593403442,3.00849063,83.114,83.078,26.2389416]
[1771593403631,10.8331,83.116,83.078,26.2389416]
[1771593404337,3.00841385,83.115,83.078,26.2389416]
[1771593404541,11.08475402,83.143,83.078,26.2389416]
[1771593404542,29.07642557,83.13,83.078,26.2389416]
[1771593404739,12.225258,83.129,83.078,26.2389416]
[1771593404944,12.225258,83.128,83.078,26.2389416]
[1771593405143,12.225258,83.127,83.078,26.2389416]
[1771593405336,12.225258,83.126,83.078,26.2389416]
[1771593405541,12.225258,83.125,83.078,26.2389416]
[1771593405843,12.225258,83.124,83.086,10.837]
[1771593406037,3.00816349,83.123,83.087,26.2389416]
[1771593406342,12.23109005,83.122,83.087,26.2389416]
[1771593406536,3.00816349,83.121,83.087,26.2389416]
[1771593406740,3.00816349,83.12,83.087,26.2389416]
[1771593406943,3.00816349,83.119,83.087,26.2389416]
[1771593407143,3.00816349,83.118,83.087,26.2389416]
[1771593407345,10.8318,83.126,83.087,26.2389416]
[1771593407544,12.23244973,83.125,83.087,26.2389416]
[1771593407744,12.23244973,83.124,83.087,26.2389416]
[1771593408042,12.23244973,83.123,83.087,26.2389416]
[1771593408243,12.23244973,83.122,83.087,26.2389416]
[1771593408439,3.00816281,83.121,83.089,10.8366]
[1771593408638,3.00816281,83.12,83.09,26.2389416]
[1771593408843,29.07642557,83.13,83.09,26.2389416]
[1771593409040,12.23286861,83.129,83.09,26.2389416]
[1771593409244,29.07642557,83.13,83.09,26.2389416]
[1771593409245,10.8318,83.126,83.09,26.2389416]
[1771593409444,12.23286861,83.125,83.09,26.2389416]
[1771593409642,12.23286861,83.124,83.09,26.2389416]
[1771593409843,3.0080971,83.123,83.09,26.2389416]
[1771593410044,3.0080971,83.122,83.09,26.2389416]
[1771593410345,3.0080971,83.121,83.09,26.2389416]
[1771593410545,3.0080971,83.12,83.09,26.2389416]
[1771593410846,3.0080971,83.119,83.09,26.2389416]
[1771593411047,10.8318,83.126,83.09,26.2389416]
[1771593411235,12.20531126,83.125,83.09,26.2389416]
[1771593411439,12.20531126,83.124,83.09,26.2389416]
[1771593411645,3.00809764,83.123,83.09,26.2389416]
[1771593411849,3.00809764,83.122,83.09,26.2389416]
[1771593412041,3.00809764,83.121,83.09,26.2389416]
[1771593412238,3.00809764,83.12,83.09,26.2389416]
[1771593412444,3.00809764,83.119,83.09,26.2389416]
[1771593412644,3.00809764,83.118,83.09,26.2389416]
[1771593412846,10.8318,83.126,83.09,26.2389416]
[1771593413042,12.20912041,83.125,83.09,26.2389416]
[1771593413243,10.8318,83.126,83.09,26.2389416]
[1771593413244,12.20912041,83.124,83.09,26.2389416]
[1771593413544,12.20912041,83.123,83.09,26.2389416]
[1771593413748,3.00809778,83.122,83.095,26.2389416]
[1771593413948,3.00809778,83.121,83.095,26.2389416]
[1771593414248,3.00805166,83.12,83.095,26.2389416]
[1771593414449,3.70382996,83.13,83.095,26.2389416]
[1771593414746,12.21463899,83.129,83.095,26.2389416]
[1771593414944,12.21463899,83.128,83.095,26.2389416]
[1771593415144,12.21463899,83.127,83.095,26.2389416]
[1771593415345,12.21463899,83.126,83.095,26.2389416]
[1771593415644,3.00805166,83.125,83.095,26.2389416]
[1771593415845,3.00805166,83.124,83.095,26.2389416]
[1771593416044,3.00805166,83.123,83.095,26.2389416]
[1771593416243,3.00805166,83.122,83.083,26.2389416]
[1771593416448,3.00805166,83.121,83.083,26.2389416]
[1771593416643,3.70382996,83.13,83.083,26.2389416]
[1771593416845,10.8317,83.127,83.091,26.2389416]
[1771593417046,12.21493582,83.126,83.091,26.2389416]
[1771593417242,3.00805291,83.125,83.091,26.2389416]
[1771593417439,3.00805291,83.124,83.091,26.2389416]
[1771593417642,10.8317,83.127,83.091,26.2389416]
[1771593417643,3.00805291,83.123,83.091,26.2389416]
[1771593417849,3.00805291,83.122,83.091,26.2389416]
[1771593418050,3.00805291,83.121,83.091,26.2389416]
[1771593418346,36.20429561,83.127,83.091,26.2389416]
[1771593418551,10.8325,83.121,83.091,26.2389416]
[1771593418752,3.00812789,83.12,83.091,26.2389416]
[1771593418952,3.00812789,83.119,83.091,26.2389416]
[1771593419252,3.00812789,83.118,83.091,26.2389416]
[1771593419553,3.00812789,83.117,83.091,26.2389416]
[1771593419751,3.00812789,83.116,83.091,26.2389416]
[1771593419952,10.8325,83.121,83.091,26.2389416]
[1771593420148,3.00812891,83.12,83.091,26.2389416]
[1771593420349,3.00812891,83.119,83.091,26.2389416]
[1771593420548,3.00812891,83.118,83.091,26.2389416]
[1771593420751,3.00812891,83.117,83.091,26.2389416]
[1771593420949,3.00812891,83.116,83.091,26.2389416]
[1771593421151,10.8325,83.121,83.091,26.2389416]
[1771593421348,3.00816043,83.12,83.091,26.2389416]
[1771593421548,3.00816043,83.119,83.091,26.2389416]
[1771593421752,3.00816043,83.118,83.091,26.2389416]
[1771593421950,3.00816043,83.117,83.091,26.2389416]
[1771593422146,3.00816043,83.116,83.091,26.2389416]
[1771593422350,3.70765857,83.12,83.091,26.2389416]
[1771593422552,3.00812976,83.119,83.091,26.2389416]
[1771593422851,3.00812976,83.118,83.091,26.2389416]
[1771593423051,3.00812976,83.117,83.091,26.2389416]
[1771593423254,3.00812976,83.116,83.091,26.2389416]
[1771593423453,3.70765857,83.12,83.091,26.2389416]
[1771593423754,3.00812997,83.119,83.091,26.2389416]
[1771593423946,11.08475402,83.141,83.091,26.2389416]
[1771593423947,3.00812997,83.118,83.091,26.2389416]
[1771593424147,10.8315,83.129,83.091,26.2389416]
[1771593424450,25.37259561,83.137,83.091,26.2389416]
[1771593424451,3.70765857,83.12,83.091,26.2389416]
[1771593424643,3.00809555,83.119,83.091,26.2389416]
[1771593424847,10.8334,83.114,83.073,26.2389416]
[1771593425043,3.70765857,83.11,83.073,26.2389416]
[1771593425552,3.70765857,83.11,83.06,3.70765857]
[1771593425553,10.8334,83.114,83.075,25.60421624]
[1771593425756,3.00841564,83.113,83.075,25.60421624]
[1771593425954,3.70765857,83.12,83.075,25.60421624]
[1771593426143,3.00816624,83.119,83.077,25.60421624]
[1771593426346,3.00816624,83.118,83.077,25.60421624]
[1771593426550,3.00816624,83.117,83.077,25.60421624]
[1771593426749,3.00816624,83.116,83.077,25.60421624]
[1771593426948,3.70765857,83.12,83.077,25.60421624]
[1771593427248,3.00816467,83.119,83.08,10.8377]
[1771593427454,3.00816467,83.118,83.081,24.5823067]
[1771593427748,3.00816467,83.117,83.081,24.5823067]
[1771593427954,3.00816467,83.116,83.081,24.5823067]
[1771593428150,10.832,83.125,83.081,24.5823067]
[1771593428352,10.8323,83.122,83.081,24.5823067]
[1771593428552,3.00816467,83.121,83.081,24.5823067]
[1771593428753,3.00816467,83.12,83.081,24.5823067]
[1771593428951,10.8311,83.132,83.092,24.5823067]
[1771593429158,9.20721906,83.131,83.092,24.5823067]
[1771593429357,3.70765857,83.14,83.092,24.5823067]
[1771593429658,9.2089776,83.139,83.094,24.5823067]
[1771593429960,9.2089776,83.138,83.094,24.5823067]
[1771593430158,9.2089776,83.137,83.094,24.5823067]
[1771593430457,9.2089776,83.136,83.094,24.5823067]
[1771593430757,9.2089776,83.135,83.094,24.5823067]